bitfinex-derivatives/quotes_ETHF0:USTF0_20251116
["timestamp","ask_amount","ask_price","bid_price","bid_amount"]
[1763257731923,3.2078,3141.3,3141.2,1.1531]
[1763257732218,1.109,3141.2,3141.1,0.00478088]
[1763257736515,1.109,3141.2,3140.5,3.2078]
[1763257736721,3.2078,3140.9,3140.5,3.2078]
[1763257737222,1.109,3140.6,3140.5,3.2078]
[1763257737928,1.109,3140.6,3140.2,0.00478088]
[1763257738819,3.8511,3140.4,3140.2,0.00478088]
[1763257740735,1.0106,3139.7,3139.6,3.2078]
[1763257741029,15.749,3140.1,3139.7,0.9036]
[1763257741420,1.0106,3139.7,3139.6,3.2078]
[1763257741625,0.6433,3139.8,3139.6,3.2078]
[1763257741826,15.749,3140.1,3139.7,0.9036]
[1763257742024,15.749,3140.1,3140.0,0.9036]
[1763257742232,15.749,3140.1,3139.6,3.2078]
[1763257742822,0.00478088,3140.9,3139.4,0.00478088]
[1763257742823,3.2078,3140.8,3140.3,0.9036]
[1763257743025,18.9568,3140.8,3140.0,3.2078]
[1763257743532,1.0106,3140.1,3140.0,3.2078]
[1763257743936,0.6433,3140.4,3140.0,3.2078]
[1763257744127,3.2078,3140.8,3140.3,0.9036]
[1763257744322,3.2078,3140.8,3140.7,0.9036]
[1763257744527,0.00366466,3141.6,3141.2,0.9036]
[1763257745127,0.00366466,3141.6,3141.0,3.2078]
[1763257745128,0.00366466,3141.6,3141.5,0.9036]
[1763257745331,0.00366466,3141.6,3141.5,0.90765027]
[1763257745532,1.65756466,3141.6,3141.5,0.00405027]
[1763257745831,0.64696466,3141.6,3140.6,3.2078]
[1763257746237,0.64696466,3141.6,3140.6,4.06103765]
[1763257746435,0.64696466,3141.6,3140.6,3.2078]
[1763257746639,0.64696466,3141.6,3140.8,0.00478088]
[1763257746836,0.64696466,3141.6,3141.1,3.2078]
[1763257747040,1.0106,3140.9,3140.8,0.00478088]
[1763257747229,0.6433,3141.0,3140.8,0.00478088]
[1763257747930,1.0106,3140.9,3140.8,0.00478088]
[1763257749434,14.9436,3140.9,3140.8,0.00478088]
[1763257749631,1.0106,3140.9,3140.8,0.00478088]
[1763257750031,11.2846,3140.9,3140.8,0.00478088]
[1763257750826,1.0106,3140.7,3140.6,0.00362216]
[1763257751127,0.6433,3140.4,3139.9,3.2078]
[1763257751737,18.9548,3140.7,3139.9,3.2078]
[1763257752038,18.9548,3140.7,3139.9,3.21108653]
[1763257752227,3.2078,3140.7,3139.9,3.21108653]
[1763257752430,3.2078,3140.7,3140.0,0.85323765]
[1763257752941,0.5719,3140.4,3139.9,4.06432418]
[1763257753946,0.5719,3140.4,3139.9,3.21108653]
[1763257753947,0.9562,3140.0,3139.9,3.21108653]
[1763257754648,0.00478088,3140.3,3139.9,3.21108653]
[1763257756042,0.9562,3140.0,3139.9,3.21108653]
[1763257756451,0.9562,3140.0,3139.9,0.00328653]
[1763257759752,3.2078,3140.2,3139.9,0.00328653]
[1763257760449,0.00478088,3140.3,3139.9,0.00328653]
[1763257761241,0.00478088,3140.3,3139.9,3.21108653]
[1763257761440,0.00478088,3140.3,3140.2,0.7634]
[1763257761955,0.6433,3141.0,3140.2,6.7634]
[1763257762152,0.6433,3141.0,3140.4,3.2078]
[1763257762355,3.2078,3141.4,3140.9,0.7634]
[1763257762556,0.64696466,3141.6,3140.9,1.61879462]
[1763257762750,0.5719,3141.0,3140.8,4.06319462]
[1763257762955,0.9562,3140.9,3140.8,4.06319462]
[1763257763158,0.9562,3140.9,3140.8,3.2078]
[1763257763546,0.9562,3140.7,3140.5,0.85539462]
[1763257763749,1.5281,3140.4,3140.3,4.06342612]
[1763257764157,1.5281,3140.4,3140.3,3.2078]
[1763257764559,0.5719,3140.4,3140.3,3.2078]
[1763257766261,0.5719,3140.4,3140.2,0.85562612]
[1763257766660,3.7797,3141.0,3140.3,3.9712]
[1763257767656,0.5719,3140.4,3140.3,3.2078]
[1763257767965,0.5719,3141.0,3140.9,0.7634]
[1763257768262,0.00478088,3141.2,3141.1,0.602]
[1763257768851,0.00478088,3141.2,3141.1,3.8098]
[1763257769062,0.00478088,3141.2,3141.1,0.602]
[1763257769655,0.00478088,3141.2,3140.9,0.85562612]
[1763257770764,0.9657,3140.9,3140.7,4.06342612]
[1763257771465,0.00478088,3141.2,3140.9,0.602]
[1763257772159,0.5705,3141.0,3140.7,4.06342612]
[1763257772563,0.9657,3140.8,3140.7,3.2078]
[1763257774068,16.7087,3140.8,3140.7,3.2078]
[1763257774360,0.5705,3141.0,3140.7,3.2078]
[1763257774562,0.9657,3140.8,3140.7,3.2078]
[1763257774767,0.5705,3141.0,3140.7,3.2078]
[1763257776567,0.9657,3140.8,3140.7,3.2078]
[1763257776767,0.5705,3141.0,3140.7,3.2078]
[1763257778772,0.00478088,3141.2,3140.9,0.602]
[1763257780871,0.5705,3141.0,3140.7,4.06342612]
[1763257781372,0.5705,3141.0,3140.9,0.602]
[1763257782168,0.00478088,3141.2,3140.9,0.602]
[1763257782474,15.74678088,3141.2,3141.1,0.602]
[1763257782874,0.00478088,3141.2,3141.1,0.602]
[1763257783175,0.00478088,3141.2,3141.1,3.8098]
[1763257784583,1.5362,3141.0,3140.7,3.2078]
[1763257784875,0.9657,3140.8,3140.7,3.2078]
[1763257785668,0.9657,3140.4,3140.3,4.06342612]
[1763257785874,0.9657,3140.4,3140.3,3.2078]
[1763257786764,0.9657,3140.4,3140.1,0.85562612]
[1763257787075,0.5705,3140.5,3140.0,0.85562612]
[1763257787476,0.9657,3140.1,3140.0,0.85562612]
[1763257788376,0.5705,3140.5,3140.0,0.85562612]
[1763257788569,0.9657,3140.1,3140.0,0.85562612]
[1763257788877,15.739,3140.3,3140.2,0.602]
[1763257789276,0.5705,3140.0,3139.9,4.06671265]
[1763257789579,1.5362,3140.0,3139.9,4.06671265]
[1763257789973,0.5705,3140.0,3139.9,4.06671265]
[1763257790564,0.5705,3140.0,3139.9,4.66871265]
[1763257790771,15.739,3140.4,3139.9,4.66871265]
[1763257791376,15.739,3140.4,3140.3,0.602]
[1763257791680,16.3095,3140.5,3140.3,0.602]
[1763257791879,3.2078,3140.8,3140.7,0.602]
[1763257792777,0.5705,3141.0,3140.7,0.602]
[1763257792973,0.5705,3141.0,3140.5,0.85562612]
[1763257793174,0.5705,3141.0,3140.4,4.66542612]
[1763257793380,0.5705,3141.0,3140.5,0.85562612]
[1763257794575,0.5705,3141.0,3140.4,4.06342612]
[1763257795784,15.74278088,3141.2,3141.0,0.602]
[1763257796486,0.00478088,3141.2,3141.0,0.602]
[1763257798088,0.5705,3141.0,3140.8,4.06342612]
[1763257798383,0.5705,3141.0,3140.9,0.602]
[1763257798889,0.8365,3140.8,3140.7,0.85562612]
[1763257799588,0.8365,3140.8,3140.5,1.13992136]
[1763257799589,4.0443,3140.8,3140.6,0.85562612]
[1763257799993,0.5705,3141.0,3140.7,0.85562612]
[1763257800282,0.8365,3140.8,3140.7,0.85562612]
[1763257800989,3.21258088,3141.2,3140.9,0.3215]
[1763257801186,0.5192,3141.0,3140.7,0.85562612]
[1763257801487,3.21258088,3141.2,3141.1,0.3215]
[1763257801684,0.00366466,3141.6,3141.1,0.3215]
[1763257801892,0.00366466,3141.6,3141.5,1.17912292]
[1763257802478,0.5192,3141.5,3141.4,0.85762292]
[1763257802682,0.5192,3141.5,3141.4,1.17912292]
[1763257802886,0.00366466,3141.6,3141.5,0.3215]
[1763257803085,0.00366466,3141.6,3141.5,1.17871892]
[1763257803286,0.8365,3141.4,3141.3,0.85721892]
[1763257803481,0.8365,3141.4,3141.1,0.85721892]
[1763257803801,0.5192,3141.5,3141.1,0.85721892]
[1763257803802,0.8365,3141.2,3141.1,0.85721892]
[1763257804092,0.5192,3141.5,3141.1,0.85721892]
[1763257804286,0.8365,3141.2,3141.1,0.85721892]
[1763257804491,0.8365,3141.2,3140.9,4.35129723]
[1763257804492,1.3557,3141.0,3140.9,4.06501892]
[1763257805081,0.5192,3141.5,3141.2,0.3215]
[1763257805285,15.734,3141.4,3141.2,0.3215]
[1763257805695,0.5192,3141.5,3141.2,0.3215]
[1763257805993,0.00366466,3141.6,3141.5,0.3215]
[1763257806586,0.00366466,3141.6,3141.5,1.17848183]
[1763257806789,0.00478088,3141.8,3141.7,0.3215]
[1763257806988,0.00478088,3141.8,3141.7,4.38577854]
[1763257807893,0.00788038,3141.8,3141.7,4.38577854]
[1763257808297,3.2078,3142.9,3142.8,0.3099]
[1763257808598,3.2078,3142.9,3142.5,0.85546442]
[1763257808790,3.2078,3142.9,3142.8,0.3099]
[1763257809390,3.21066459,3142.9,3142.8,0.31256523]
[1763257810284,0.00286459,3142.9,3142.8,0.31256523]
[1763257811594,3.2078,3143.3,3142.8,0.31256523]
[1763257811595,3.2078,3143.3,3143.2,0.3099]
[1763257812391,3.2424,3143.7,3143.2,3.5177]
[1763257812701,0.03805668,3143.7,3143.2,3.5177]
[1763257812997,0.03805668,3143.7,3143.2,3.2078]
[1763257814195,0.8019,3143.3,3143.2,3.2078]
[1763257814398,0.4869,3143.4,3143.2,3.2078]
[1763257814602,0.03805668,3143.7,3143.2,3.2078]
[1763257814603,0.03805668,3143.7,3143.6,0.1785]
[1763257815099,0.03805668,3143.7,3143.6,3.3863]
[1763257815912,3.727,3144.6,3143.6,3.3863]
[1763257816792,0.4869,3144.0,3143.6,3.2078]
[1763257816994,0.4900034,3144.0,3143.6,3.2078]
[1763257818792,0.4900034,3144.0,3143.9,0.1404]
[1763257818989,0.0031034,3144.0,3143.9,0.1404]
[1763257819804,0.4900034,3144.0,3143.6,3.2078]
[1763257822699,0.4900034,3144.0,3143.2,3.2078]
[1763257823698,0.4900034,3144.0,3143.6,3.2078]
[1763257824004,0.0031034,3144.0,3143.9,0.1404]
[1763257827309,0.8019,3143.7,3143.6,3.2078]
[1763257828503,0.4827,3143.5,3143.2,3.2078]
[1763257828708,0.4827,3143.5,3143.4,0.0173]
[1763257828906,0.4900034,3144.0,3143.4,0.0173]
[1763257829098,0.4827,3143.5,3143.2,3.2078]
[1763257830515,0.4900034,3144.0,3143.4,0.0173]
[1763257832917,0.4900034,3144.0,3143.6,3.2078]
[1763257833920,0.4900034,3144.0,3143.9,0.0173]
[1763257834424,0.0031034,3144.0,3143.9,0.0173]
[1763257836022,0.4827,3145.0,3144.5,0.0173]
[1763257836218,0.4827,3145.0,3144.9,0.0173]
[1763257836419,0.4827,3145.5,3144.9,0.87276442]
[1763257836728,0.4827,3145.5,3144.9,0.87753716]
[1763257837018,0.48524186,3145.5,3144.9,0.87753716]
[1763257837214,1.2727,3145.0,3144.9,0.86023716]
[1763257837411,0.4827,3145.0,3144.9,0.87753716]
[1763257838522,1.2727,3145.0,3144.9,0.00477274]
[1763257839423,0.4827,3145.0,3144.9,0.02207274]
[1763257839919,3.2078,3145.3,3144.9,0.02207274]
[1763257840119,3.2078,3145.3,3145.0,0.85463859]
[1763257840319,0.4827,3145.0,3144.9,0.00477274]
[1763257840926,1.2727,3145.0,3144.9,0.00477274]
[1763257841323,1.2727,3145.0,3144.9,0.85941133]
[1763257841525,0.4827,3145.0,3144.9,0.85941133]
[1763257842121,1.2727,3145.0,3144.9,0.85941133]
[1763257842524,0.4827,3145.0,3144.9,0.85941133]
[1763257842829,0.4827,3145.0,3144.9,0.87671133]
[1763257843029,0.4827,3145.0,3144.9,0.85941133]
[1763257843228,0.4827,3145.0,3144.9,0.87671133]
[1763257843430,0.4827,3145.0,3144.9,0.85941133]
[1763257843824,1.2727,3145.0,3144.9,0.85941133]
[1763257844535,0.48524186,3145.5,3144.9,0.02207274]
[1763257844827,0.48524186,3145.5,3145.0,0.85378497]
[1763257845332,0.48524186,3145.5,3145.4,0.0173]
[1763257845534,0.48524186,3145.5,3145.4,0.021145]
[1763257846434,0.48524186,3145.5,3145.4,0.003845]
[1763257846625,1.27524186,3145.5,3145.4,0.003845]
[1763257846826,0.79,3145.3,3145.2,3.2078]
[1763257848133,0.79,3145.3,3145.2,3.21152043]
[1763257849225,0.48524186,3145.5,3145.2,3.21152043]
[1763257850231,0.79,3145.3,3145.2,3.21152043]
[1763257852438,0.48524186,3145.5,3145.2,3.23272043]
[1763257853134,0.48524186,3145.5,3145.4,0.87498497]
[1763257853135,0.00254186,3145.5,3145.4,0.87498497]
[1763257853437,1.27524186,3145.5,3145.4,0.85378497]
[1763257853642,0.48524186,3145.5,3145.4,0.87498497]
[1763257855334,1.27524186,3145.5,3145.3,0.85378497]
[1763257856345,1.27524186,3145.5,3145.2,4.0653054]
[1763257856646,0.00254186,3145.5,3145.4,0.0212]
[1763257857942,0.48524186,3145.5,3145.4,0.0212]
[1763257860647,0.6814,3145.3,3145.2,4.0653054]
[1763257861044,0.48524186,3145.5,3145.2,4.0653054]
[1763257861345,0.48524186,3145.5,3145.3,0.85378497]
[1763257863350,0.48524186,3145.5,3145.4,0.85378497]
[1763257864350,0.48524186,3145.5,3145.3,1.14349723]
[1763257864553,0.00254186,3145.5,3145.4,1.14349723]
[1763257865155,0.00254186,3145.5,3145.3,1.70988205]
[1763257865345,0.6814,3145.4,3145.3,1.70811582]
[1763257865638,0.41694186,3145.5,3145.3,1.70811582]
[1763257867255,0.00254186,3145.5,3145.4,1.70811582]
[1763257867948,1.09834186,3145.5,3145.4,1.70811582]
[1763257868151,0.6814,3145.3,3145.2,0.00372043]
[1763257868657,0.6814,3145.3,3145.2,3.21152043]
[1763257868855,0.41694186,3145.5,3145.2,4.06515658]
[1763257869057,0.6814,3145.3,3145.2,4.06515658]
[1763257869659,0.6814,3145.3,3145.2,0.00372043]
[1763257869853,0.6814,3145.3,3145.2,0.85735658]
[1763257871357,0.6814,3145.3,3145.2,0.00372043]
[1763257871855,1.0958,3145.0,3144.9,0.85840889]
[1763257873050,1.0958,3145.0,3144.9,0.8623566]
[1763257874746,0.41694186,3145.5,3144.9,0.8623566]
[1763257874952,0.41694186,3145.5,3145.3,1.13818154]
[1763257875159,0.671,3145.4,3145.3,1.13818154]
[1763257875552,0.671,3145.2,3145.1,4.91591582]
[1763257875754,0.41694186,3145.5,3145.1,4.73799235]
[1763257876059,0.41694186,3145.5,3145.2,0.85409235]
[1763257876652,0.671,3145.3,3145.2,0.85409235]
[1763257876852,0.671,3145.2,3145.1,4.06189235]
[1763257877257,1.054,3145.0,3144.9,0.8628128]
[1763257877459,0.383,3145.0,3144.9,0.68482045]
[1763257878162,1.054,3145.0,3144.9,0.86296984]
[1763257880068,1.054,3145.0,3144.9,0.00872045]
[1763257880559,1.054,3145.0,3144.9,0.68482045]
[1763257880865,0.383,3145.0,3144.9,0.68482045]
[1763257881267,1.054,3145.0,3144.9,0.68482045]
[1763257881469,1.054,3145.0,3144.9,0.00872045]
[1763257881672,1.054,3145.0,3144.9,0.86372234]
[1763257882266,0.383,3145.0,3144.9,1.53982234]
[1763257882468,1.054,3145.0,3144.9,1.53982234]
[1763257884070,0.383,3145.0,3144.9,1.53982234]
[1763257884469,1.08794186,3145.5,3144.9,0.86372234]
[1763257884665,0.41694186,3145.5,3145.1,3.8839]
[1763257885473,0.41694186,3145.5,3145.1,4.73880716]
[1763257886363,0.3987,3144.3,3144.2,1.582e-05]
[1763257886564,15.684,3144.3,3143.1,3.2078]
[1763257886766,3.2078,3143.5,3142.7,3.2078]
[1763257886971,3.2078,3143.5,3142.5,0.3898]
[1763257886972,3.2078,3143.1,3142.5,0.3898]
[1763257887164,3.2078,3143.1,3143.0,0.3898]
[1763257887370,3.21060119,3143.1,3142.7,0.00477274]
[1763257888267,3.21060119,3143.1,3143.0,0.421]
[1763257889466,3.21060119,3143.1,3142.7,0.00477274]
[1763257889867,3.21060119,3143.1,3143.0,0.421]
[1763257890563,9.21060119,3143.1,3142.7,0.00477274]
[1763257890871,3.21060119,3143.1,3142.7,0.00477274]
[1763257891467,3.21060119,3143.1,3143.0,1.1539]
[1763257892177,0.00280119,3143.1,3143.0,1.1539]
[1763257892977,3.2078,3144.0,3143.5,0.421]
[1763257893169,3.2078,3144.0,3143.9,0.7329]
[1763257894371,3.85153876,3146.9,3143.9,0.7329]
[1763257894372,3.2078,3144.6,3144.5,1.1539]
[1763257895170,3.2078,3145.2,3145.1,0.7329]
[1763257895366,12.0048,3145.8,3145.1,3.9407]
[1763257895672,0.716,3145.2,3145.1,3.21025324]
[1763257895867,3.21135089,3145.8,3145.2,0.421]
[1763257896073,3.21135089,3145.8,3145.7,0.7329]
[1763257896372,14.6648,3147.1,3145.8,0.421]
[1763257896676,14.6648,3147.1,3146.4,0.421]
[1763257896677,3.2078,3146.6,3146.4,0.421]
[1763257896865,3.2078,3146.6,3146.1,0.00477274]
[1763257897271,3.2078,3147.0,3146.5,0.7329]
[1763257897471,3.21046371,3147.0,3146.5,0.7329]
[1763257898082,3.21046371,3147.0,3146.4,3.6288]
[1763257899178,3.21046371,3147.0,3146.9,0.7329]
[1763257899480,0.00266371,3147.0,3146.9,0.7329]
[1763257900275,3.2078,3147.9,3146.9,0.7329]
[1763257900477,3.2078,3147.9,3147.2,3.2078]
[1763257901482,0.00298214,3147.9,3147.8,0.7329]
[1763257901682,0.00298214,3147.9,3147.8,0.73536707]
[1763257902582,0.0346,3148.7,3147.8,0.73536707]
[1763257902778,0.0346,3148.7,3148.4,3.2078]
[1763257903281,0.716,3148.5,3148.4,3.2078]
[1763257903581,3.92738163,3148.5,3147.9,0.00476462]
[1763257904384,0.00358163,3148.5,3148.2,0.421]
[1763257906683,0.00358163,3148.5,3148.4,0.7329]
[1763257907281,0.00358163,3148.5,3148.2,0.421]
[1763257907482,0.716,3148.2,3148.1,3.2078]
[1763257907687,0.00358163,3148.5,3148.2,0.421]
[1763257907875,0.716,3148.0,3147.9,0.00476462]
[1763257910786,6.716,3148.0,3147.9,0.00476462]
[1763257911888,0.716,3147.4,3147.3,3.2078]
[1763257912186,3.2078,3148.1,3147.3,3.9407]
[1763257912391,3.21138163,3148.5,3147.3,3.9407]
[1763257912582,6.74038163,3148.5,3147.3,3.9407]
[1763257912782,0.00473758,3148.2,3147.6,0.42576462]
[1763257913175,0.00473758,3148.2,3147.8,3.2078]
[1763257915382,0.716,3147.9,3147.8,3.2078]
[1763257915879,0.716,3147.7,3147.6,0.00476462]
[1763257917292,0.716,3147.0,3146.9,3.2078]
[1763257917482,3.60793758,3148.2,3147.0,0.421]
[1763257917789,3.2078,3147.8,3147.0,0.421]
[1763257918083,0.716,3147.0,3146.9,3.2078]
[1763257918288,0.716,3147.0,3146.9,3.21086451]
[1763257919080,4.2747,3147.0,3146.9,0.00306451]
[1763257920383,3.2078,3147.8,3147.0,0.4241]
[1763257920582,3.60793758,3148.2,3147.0,0.4241]
[1763257920785,3.21253758,3148.2,3147.3,3.2078]
[1763257920986,0.00473758,3148.2,3148.1,3.9138]
[1763257921982,0.0346,3148.7,3148.6,0.706]
[1763257922178,12.671,3149.2,3149.1,0.706]
[1763257922381,12.671,3149.2,3149.1,3.2078]
[1763257922786,13.3867,3149.2,3148.6,3.2078]
[1763257922990,13.39526845,3149.2,3148.6,3.21256462]
[1763257923395,0.72426845,3149.2,3148.6,3.21256462]
[1763257925290,1.57941003,3149.2,3148.6,3.21256462]
[1763257925586,0.00856845,3149.2,3149.1,0.706]
[1763257927795,0.7157,3149.1,3149.0,3.2078]
[1763257929189,1.57084158,3149.1,3149.0,3.2078]
[1763257929385,1.57084158,3149.1,3148.6,0.00476462]
[1763257929386,0.7157,3149.1,3148.6,0.00476462]
[1763257929689,0.85236979,3149.1,3148.9,3.2078]
[1763257929895,0.85236979,3149.0,3148.9,3.2078]
[1763257930196,0.85236979,3149.1,3148.9,3.2078]
[1763257930391,0.85236979,3149.0,3148.9,3.2078]
[1763257930587,0.85236979,3149.1,3148.9,3.2078]
[1763257931590,0.85236979,3149.0,3148.9,3.2078]
[1763257931797,0.85236979,3149.1,3149.0,0.706]
[1763257932393,1.15143557,3149.2,3148.9,3.2078]
[1763257932394,0.00856845,3149.2,3149.1,0.706]
[1763257933290,1.71430068,3150.0,3149.1,0.706]
[1763257933291,0.85236979,3150.1,3150.0,1.0928]
[1763257933491,0.85236979,3150.2,3149.5,3.2078]
[1763257934194,3.2078,3149.9,3149.5,3.21168539]
[1763257934792,0.7003,3149.6,3149.5,0.00388539]
[1763257935294,1.55266979,3149.6,3149.5,0.00388539]
[1763257935490,0.7003,3149.1,3149.0,3.2078]
[1763257936197,0.7003,3149.1,3148.6,3.21256462]
[1763257936405,0.7003,3149.1,3148.6,3.21491776]
[1763257936791,1.55160214,3149.1,3148.6,3.21491776]
[1763257937393,0.7003,3149.1,3148.6,3.21491776]
[1763257937603,1.55160214,3149.1,3148.6,3.21491776]
[1763257938604,0.7003,3148.7,3148.6,3.21491776]
[1763257938906,15.653,3148.7,3148.6,3.89111776]
[1763257939207,16.3533,3148.7,3148.6,3.21491776]
[1763257939501,16.3533,3148.7,3148.6,0.00711776]
[1763257939898,15.653,3148.8,3148.6,0.00711776]
[1763257940100,15.653,3148.8,3148.6,3.21491776]
[1763257940297,0.8515164,3149.0,3148.6,3.21491776]
[1763257940499,0.8515164,3149.1,3149.0,0.6762]
[1763257940803,14.739,3149.2,3149.1,0.6762]
[1763257941297,14.739,3149.2,3148.8,0.4166]
[1763257942309,0.85145045,3149.4,3149.2,0.6762]
[1763257943207,0.85145045,3149.5,3149.4,1.0928]
[1763257943408,0.85145045,3149.6,3149.4,1.0928]
[1763257943709,20.34845045,3149.7,3149.4,1.0928]
[1763257944116,15.651,3149.6,3149.4,1.0928]
[1763257944312,0.85145045,3149.7,3149.6,0.6762]
[1763257944606,0.85145045,3149.8,3149.6,0.6762]
[1763257946703,0.85145045,3149.8,3149.4,0.4166]
[1763257947512,0.7003,3149.5,3149.0,3.2078]
[1763257947813,16.3503,3149.5,3149.0,3.2078]
[1763257948317,0.7003,3149.1,3148.6,3.21491776]
[1763257948522,0.85145045,3149.0,3148.9,0.625]
[1763257949316,1.14286712,3149.0,3148.9,0.625]
[1763257950320,0.85493784,3149.1,3148.6,3.21491776]
[1763257950527,15.648,3149.3,3149.2,0.625]
[1763257951627,15.648,3149.3,3149.0,3.2078]
[1763257951926,0.85545483,3149.1,3149.0,3.8328]
[1763257952810,0.85545483,3149.1,3149.0,4.2272]
[1763257953216,0.85545483,3149.2,3149.1,0.625]
[1763257954022,0.85545483,3149.2,3149.0,3.6022]
[1763257954527,0.85545483,3149.2,3149.1,0.625]
[1763257957523,16.50045483,3149.2,3149.1,0.625]
[1763257958416,17.13915483,3149.2,3148.9,3.2078]
[1763257958828,16.50045483,3149.2,3149.1,0.625]
[1763257959430,0.6387,3149.1,3148.9,3.2078]
[1763257959630,0.6387,3149.0,3148.9,3.2078]
[1763257959930,16.50045483,3149.2,3148.9,3.8328]
[1763257960523,16.50045483,3149.2,3149.1,0.625]
[1763257961328,0.85545483,3149.2,3149.1,0.625]
[1763257961529,11.741,3149.2,3149.1,0.625]
[1763257961733,13.23515483,3149.2,3149.1,0.625]
[1763257961937,13.23515483,3149.2,3149.0,0.3944]
[1763257962429,13.23515483,3149.2,3149.1,0.625]
[1763257962430,1.49415483,3149.2,3149.1,0.625]
[1763257962627,0.6387,3149.1,3149.0,0.3944]
[1763257963835,0.6387,3149.0,3148.9,3.2078]
[1763257966434,0.85545483,3149.1,3149.0,1.0194]
[1763257968929,16.49645483,3149.1,3149.0,1.0194]
[1763257971028,15.641,3149.1,3149.0,1.0194]
[1763257971334,16.2797,3149.1,3149.0,1.0194]
[1763257971528,15.641,3149.1,3149.0,1.0194]
[1763257973136,0.6387,3149.0,3148.9,3.2078]
[1763257973434,1.49566499,3149.0,3148.9,3.2078]
[1763257973822,0.6387,3148.7,3148.6,0.00711776]
[1763257974027,1.14278586,3148.8,3148.7,0.625]
[1763257974236,12.45848586,3148.8,3148.7,0.625]
[1763257974430,0.6387,3148.7,3148.6,0.00711776]
[1763257975133,11.81978586,3148.8,3148.6,0.63211776]
[1763257975332,12.45848586,3148.8,3148.7,0.625]
[1763257976440,12.45848586,3148.8,3148.6,0.00711776]
[1763257976640,0.6387,3148.7,3148.6,0.00711776]
[1763257976839,0.6387,3148.7,3148.6,0.63211776]
[1763257977136,16.2767,3148.7,3148.6,0.63211776]
[1763257977839,16.2767,3148.7,3148.6,0.00711776]
[1763257980334,0.6387,3148.7,3148.6,0.59181776]
[1763257980640,1.77478586,3148.8,3148.7,0.5847]
[1763257980837,0.632,3148.7,3148.6,0.00711776]
[1763257981035,1.48857856,3148.7,3148.6,0.00711776]
[1763257981230,0.632,3148.7,3148.6,1.776e-05]
[1763257981543,2.34537154,3148.7,3148.6,1.776e-05]
[1763257982530,17.98137154,3148.7,3148.6,1.776e-05]
[1763257983229,1.71337154,3148.7,3148.6,0.58471776]
[1763257983441,15.636,3148.7,3148.6,1.776e-05]
[1763257984031,15.636,3148.7,3148.6,0.58471776]
[1763257985538,1.14149415,3148.9,3148.8,0.5847]
[1763257985737,0.00476462,3149.0,3148.8,3.2078]
[1763257985935,16.267,3148.9,3148.6,1.776e-05]
[1763257986247,16.49093383,3148.9,3148.6,1.776e-05]
[1763257986434,0.86069845,3149.0,3148.8,3.7925]
[1763257986744,11.69,3149.1,3149.0,0.9477]
[1763257989546,0.85593383,3149.4,3149.0,0.9477]
[1763257989746,0.632,3149.3,3149.2,3.2078]
[1763257990042,0.632,3149.3,3149.2,3.7925]
[1763257990344,12.53649415,3149.4,3149.3,0.5847]
[1763257990535,11.395,3149.4,3149.3,0.5847]
[1763257990739,11.395,3149.4,3149.0,0.363]
[1763257990940,0.85561106,3149.3,3149.0,0.363]
[1763257991339,0.85561106,3149.3,3149.2,0.5847]
[1763257991548,16.48761106,3149.3,3149.2,3.7925]
[1763257991748,15.632,3149.3,3149.2,3.7925]
[1763257991948,16.264,3149.3,3149.2,3.7925]
[1763257992449,17.11961106,3149.3,3149.2,3.7925]
[1763257992642,17.11961106,3149.3,3149.2,3.2078]
[1763257994149,0.85561106,3149.4,3149.2,3.7925]
[1763257994353,12.4815,3149.3,3149.2,3.2078]
[1763257994546,12.4815,3149.3,3149.2,3.8081]
[1763257996943,0.85561106,3149.6,3149.4,0.6003]
[1763257997145,5.43022837,3150.3,3150.1,0.6003]
[1763257997146,0.55537069,3150.2,3150.1,0.6003]
[1763257997747,0.5525,3150.1,3150.0,0.3365]
[1763257998451,0.5525,3150.0,3149.9,3.2078]
[1763258000154,0.00287069,3150.2,3150.1,0.6003]
[1763258000346,0.5525,3150.0,3149.9,3.2078]
[1763258001850,16.1775,3150.0,3149.9,3.2078]
[1763258005964,0.55537069,3150.2,3150.1,0.6003]
[1763258006167,16.17737069,3150.2,3150.1,0.6003]
[1763258007466,0.5525,3150.1,3150.0,0.9368]
[1763258007963,16.1735,3150.1,3150.0,0.9368]
[1763258008960,16.1735,3150.1,3150.0,0.3365]
[1763258009667,0.5525,3150.1,3150.0,0.3365]
[1763258009867,9.0915,3150.1,3150.0,0.3365]
[1763258010769,9.0915,3150.1,3150.0,0.9127]
[1763258011371,0.00287069,3150.2,3150.1,0.5762]
[1763258011565,15.62187069,3150.2,3150.1,0.5762]
[1763258011870,0.54817069,3150.2,3150.1,0.5762]
[1763258012264,0.5453,3150.1,3150.0,0.3365]
[1763258013074,0.5453,3150.0,3149.9,3.2078]
[1763258013378,16.1623,3150.0,3149.9,3.2078]
[1763258014275,16.3715,3150.0,3149.9,3.2078]
[1763258014582,0.5453,3149.5,3149.4,3.2078]
[1763258014781,16.1623,3149.5,3149.4,3.2078]
[1763258014973,16.1623,3149.5,3149.4,3.784]
[1763258015174,16.1623,3149.5,3149.4,3.2078]
[1763258016772,0.5453,3149.5,3149.4,3.2078]
[1763258016975,16.1613,3149.5,3149.4,3.2078]
[1763258017773,0.5453,3149.1,3149.0,3.2078]
[1763258017966,0.5453,3149.1,3149.0,3.5515]
[1763258018171,0.5453,3149.1,3149.0,4.1277]
[1763258018370,1.14149415,3149.5,3149.0,4.1277]
[1763258018571,1.68679415,3149.7,3149.6,0.5762]
[1763258018782,16.1603,3149.7,3149.6,0.5762]
[1763258019884,15.615,3149.8,3149.5,0.9199]
[1763258020076,0.5453,3149.6,3149.5,0.3437]
[1763258020482,0.5453,3149.6,3149.0,3.5515]
[1763258020683,0.5453,3149.6,3149.5,0.9199]
[1763258021077,0.5453,3149.6,3149.5,0.3437]
[1763258022186,4.89459415,3149.9,3149.8,0.5762]
[1763258022386,15.5963,3149.9,3149.8,0.5762]
[1763258022883,0.00287069,3150.2,3150.1,0.5762]